Cogmind - Beta 15 @@@ ROGUE MODE // 2025.09.17 @ 23:05:42 Player: Runagate Result: Destroyed by D-53 Grenadier with Mini Grenade Launcher Performance ------------- Evolutions (0) 0 Regions Visited (2) 400 Robots Destroyed (13) 65 Value Destroyed (173) 173 Prototype IDs (3) 60 Alien Tech Used (0) 0 Bonus (0) 0 TOTAL SCORE: 698 Bonus ------- None Cogmind --------- Core Integrity 0/250 Matter 125/300 Energy 100/100 System Corruption 0% Temperature Cool (0) Movement Core (400) Ox7 Location -10/Mines Parts ------- > --- POWER (1) -------- (None) > --- PROPULSION (2) --- (None) > --- UTILITY (2) ------ Large Storage Unit Seismic Detector > --- WEAPON (2) ------- Mini Grenade Launcher Mini Grenade Launcher > --- INVENTORY (15) --- Ion Engine Light Ion Engine Large Matter Pod (150) Seismic Detector Seismic Detector Heavy EM Pulse Gun Medium Laser Small Laser Beam Cannon Light Assault Rifle Peak State ------------ > --- POWER ------------ Ion Engine > --- PROPULSION ------- Light Treads Light Treads > --- UTILITY ---------- Large Storage Unit Seismic Detector > --- WEAPON ----------- Mini Grenade Launcher Mini Grenade Launcher > --- INVENTORY -------- Ion Engine Light Ion Engine Large Matter Pod Seismic Detector Seismic Detector Heavy EM Pulse Gun Medium Laser Small Laser Beam Cannon Light Assault Rifle [Rating: 10] Favorites ----------- Power Ion Engine Engine Ion Engine Propulsion Light Treads Treads Light Treads Utility Seismic Detector Device Seismic Detector Storage Small Storage Unit Weapon Light Assault Rifle Energy Gun Medium Laser Ballistic Gun Light Assault Rifle Launcher Mini Grenade Launcher Build | -11 -10 -10 ------- Run | Yrd Mat Min Slots Evolved . | . . . Power . | . . . Propulsion . | . . . Utility . | . . . Weapon . | . . . Parts Attached 12 | 7 3 2 Power 1 | 1 . . Engine 1 | 1 . . Core . | . . . Reactor . | . . . Propulsion 2 | 2 . . Treads 2 | 2 . . Leg . | . . . Wheel . | . . . Hover . | . . . Flight . | . . . Utility 5 | 2 3 . Device 2 | 1 1 . Storage 3 | 1 2 . Processor . | . . . Hackware . | . . . Protection . | . . . Artifact . | . . . Weapon 4 | 2 . 2 Energy Gun 1 | 1 . . Energy Cannon . | . . . Ballistic Gun 1 | 1 . . Ballistic Cannon . | . . . Launcher 2 | . . 2 Special Weapon . | . . . Impact Weapon . | . . . Slashing Weapon . | . . . Piercing Weapon . | . . . Special Melee Weapon . | . . . Unidentified Prototypes . | . . . Parts Lost 3 | . . 3 Power 1 | . . 1 Propulsion 2 | . . 2 Utility . | . . . Weapon . | . . . Highest Loss Streak 3 | . . 3 To Critical Strikes . | . . . Average Backups 5 | 1 5 10 Power 1 | . 1 2 Propulsion . | . . . Utility 2 | . 2 3 Weapon 2 | . 1 5 Tool/Special . | . . . Unused Backups 8 | . 1 7 Power 2 | . . 2 Propulsion . | . . . Utility 3 | . 1 2 Weapon 3 | . . 3 Tool/Special . | . . . Average Slot Usage (%) 100 | . 100 100 Engine 14 | . 14 14 Treads 28 | . 28 28 Device 14 | . 14 14 Storage 14 | . 14 14 Energy Gun 13 | . 14 9 Ballistic Gun 13 | . 14 10 Launcher 1 | . . 7 Peak Build Rating 10 | 7 8 10 Average Rating 7 | 5 7 8 On Entrance 5 | . 7 8 Naked Turns . | . . . Heaviest Build 29 | 14 29 29 Greatest Support 40 | 40 40 40 Greatest Overweight (x) . | . . . Average Overweight (x) . | . . . Largest Inventory Capacity 15 | 8 15 15 Average Capacity 10 | 7 9 15 Most Carried 10 | 3 10 10 Average Carried 5 | 1 5 10 Final Capacity 15 | 8 15 15 Final Carried 10 | 3 10 10 Class Distribution -------------------- 100% | Mutant Dominant Class ---------------- Mutant | -10/Materials Mutant | -10/Mines Resources | -11 -10 -10 ----------- Run | Yrd Mat Min Matter Collected 481 | 275 204 2 Remotely . | . . . Salvage Created 417 | 140 182 95 Parts 35 | 14 16 5 Haulers Intercepted . | . . . Recyclers Shooed . | . . . Parts Field Recycled . | . . . Retrieved Matter . | . . . Parts Self-Destructed . | . . . Prevented . | . . . Kills | -11 -10 -10 ------- Run | Yrd Mat Min Combat Hostiles Destroyed 19 | . 2 17 Guns 2 | . 2 . AOE 17 | . . 17 Classes Destroyed 6 | 2 2 2 Builder 1 | . . 1 Tunneler 7 | 3 3 1 Recycler 1 | 1 . . Watcher 2 | . 2 . Grunt 2 | . 2 . Assembled 17 | . . 17 Best Kill Streak 18 | 3 4 18 Combat Bots Only 17 | . 2 17 Max Kills in Single Turn 8 | 1 1 8 Gunslinging . | . . . Exploded 8 | . . 8 Melee . | . . . Uniques/NPCs Destroyed . | . . . Combat | -11 -10 -10 -------- Run | Yrd Mat Min Hostile Shots Fired 30 | . 12 18 Missed 2 | . 1 1 Hits 28 | . 11 17 Projectile 28 | . 11 17 AOE 12 | . . 12 Damage Taken 775 | . 152 623 Core 276 | . 41 235 Absorbed by Shields . | . . . Core Remaining (%) 100 | 100 . . Volleys Fired 39 | 5 24 10 Largest 2 | 2 2 2 Hottest 70 | 70 70 70 Shots Fired 76 | 10 46 20 Gun 60 | 10 46 4 Cannon . | . . . Launcher 16 | . . 16 Special . | . . . Kinetic 31 | 5 24 2 Thermal 29 | 5 22 2 Explosive 16 | . . 16 Electromagnetic . | . . . Robot Hit Streak 17 | 6 17 3 Robot Miss Streak 7 | . 7 3 Penetration Max . | . . . Secondary Targets . | . . . Shots Hit Robots 41 | 6 27 8 Core Hits 66 | 6 14 46 Critical Kills . | . . . Critical Parts Destroyed . | . . . Critical Strikes 3 | 2 1 . Burn 3 | 2 1 . Melee Attacks . | . . . Impact . | . . . Slashing . | . . . Piercing . | . . . Sneak Attacks . | . . . Combat Hostiles . | . . . Follow-up Attacks . | . . . Damage Inflicted 1835 | 75 318 1442 Guns 415 | 75 318 22 Cannons . | . . . Explosions 1420 | . . 1420 Melee . | . . . Ramming . | . . . Kinetic 150 | 12 128 10 Thermal 265 | 63 190 12 Explosive 1420 | . . 1420 Electromagnetic . | . . . Impact . | . . . Slashing . | . . . Piercing . | . . . Highest Corruption . | . . . Average Corruption . | . . . Corruption Purged . | . . . Corruption Blocked . | . . . Overload Shots . | . . . Overflow Damage 64 | . . 64 Projectiles . | . . . Explosions 64 | . . 64 Melee . | . . . Knockbacks . | . . . Impact . | . . . Kinetic . | . . . Secondary . | . . . Self-Inflicted Damage 104 | . . 104 Shots 3 | . . 3 Rammed . | . . . Targets Rammed . | . . . Kicked . | . . . Crushed . | . . . Highest Temperature 188 | 80 188 40 Average Temperature 46 | 32 54 18 Received Heat Transfer 98 | . 78 20 Siege Activations . | . . . Martial Activations . | . . . Shielding Activations . | . . . Robots Disrupted . | . . . Combat Hostiles . | . . . Robots Corrupted . | . . . Combat Hostiles . | . . . Parts Fried . | . . . Impact Corruptions . | . . . Robots Melted . | . . . Combat Hostiles . | . . . Parts Melted 1 | 1 . . Heat Transferred 999 | 333 629 37 Parts Sabotaged . | . . . Parts Stolen . | . . . Parts Stripped . | . . . Power Chain Reactions . | . . . Alert | -11 -10 -10 ------- Run | Yrd Mat Min Maximum Alert Level . | . . . Low Security (%) 100 | 100 100 100 Level 1 . | . . . Level 2 . | . . . Level 3 . | . . . Level 4 . | . . . Level 5 . | . . . High Security . | . . . Max Security . | . . . Peak Influence 50 | 15 50 37 Initial . | . . . Average 4 | 2 4 5 Influence Increases 171 | 20 88 63 Destroy 0b10 Robot/C 40 | . 40 . Destroy 0b10 Robot/NC 55 | 20 25 10 Destroy Leader 14 | . 14 . Successful Hack 7 | . 7 . Destroy Structure 55 | . 2 53 Influence Decreases 153 | 20 88 45 Time Decay 123 | 20 88 15 Lost Part 30 | . . 30 Squads Dispatched . | . . . Investigation . | . . . Extermination . | . . . Reinforcement . | . . . Assault . | . . . Garrison . | . . . Intercept . | . . . Searches Triggered . | . . . Construction Impeded . | . . . Haulers Reinforced . | . . . Active Scanning Responses . | . . . Cargo Convoy Interrupts . | . . . Stealth | -11 -10 -10 --------- Run | Yrd Mat Min Distress Signals 1 | . 1 . Communications Jammed . | . . . Distress Signals . | . . . Times Spotted 27 | . 7 20 Peak Tracking Total 15 | . 3 15 Tactical Retreats 1 | . . 1 Traps | -11 -10 -10 ------- Run | Yrd Mat Min Traps Triggered . | . . . Indirectly . | . . . Trap Hack Attempts . | . . . Triggered . | . . . Disarmed 3 | . 3 . Reprogrammed . | . . . Reused . | . . . Traps Extracted . | . . . Installed . | . . . Triggered . | . . . Machines | -11 -10 -10 ---------- Run | Yrd Mat Min Machines Disabled . | . . . Max in Single Turn . | . . . Machines Repaired . | . . . Machines Dismantled . | . . . Machines Sabotaged . | . . . Overloaded Fab Kills . | . . . Hacking | -11 -10 -10 --------- Run | Yrd Mat Min Machines Accessed 3 | . 3 . Terminals 3 | . 3 . Fabricators . | . . . Repair Stations . | . . . Recycling Units . | . . . Scanalyzers . | . . . Garrison Access . | . . . Total Hacks 8 | . 8 . Successful 4 | . 4 . Failed 4 | . 4 . Catastrophic 1 | . 1 . Database Lockouts . | . . . Manual 4 | . 4 . Terminals 8 | . 8 . Fabricators . | . . . Repair Stations . | . . . Recycling Units . | . . . Scanalyzers . | . . . Garrison Access . | . . . Terminal Hacks 4 | . 4 . Prototype ID Bank 2 | . 2 . Disarm Traps 1 | . 1 . Registered Components 1 | . 1 . Fabricator Hacks . | . . . Repair Station Hacks . | . . . Recycling Unit Hacks . | . . . Scanalyzer . | . . . Garrison Access Hacks . | . . . Unauthorized Hacks . | . . . Terminals . | . . . Fabricators . | . . . Repair Stations . | . . . Recycling Units . | . . . Scanalyzers . | . . . Garrison Access . | . . . Data Cores Recovered . | . . . Used . | . . . Hacking Detections 2 | . 2 . Full Trace Events . | . . . Feedback Events . | . . . Feedback Blocked . | . . . Robot Schematics Acquired . | . . . Robots Built . | . . . Authchips . | . . . Time . | . . . Total Robot Build Rating . | . . . Part Schematics Acquired . | . . . Parts Built . | . . . Authchips . | . . . Time . | . . . Total Part Build Rating . | . . . Parts Repaired . | . . . Time . | . . . Parts Recycled . | . . . Recycled Matter . | . . . Retrieved Matter . | . . . Retrieved Components . | . . . Parts Scanalyzed . | . . . Part Schematics Acquired . | . . . Parts Damaged . | . . . Bothacking | -11 -10 -10 ------------ Run | Yrd Mat Min Used RIF Installer . | . . . Robots Hacked . | . . . Non-combat . | . . . Combat . | . . . Robot Hacks Applied . | . . . Relay Couplers Released . | . . . Fabnet Peak Effective % . | . . . Robots Rewired . | . . . Allies Hacked . | . . . Hacks Repelled . | . . . Allies | -11 -10 -10 -------- Run | Yrd Mat Min Total Allies . | . . . Largest Group . | . . . Highest-Rated Group . | . . . Highest-Rated Ally . | . . . Total Orders . | . . . Ally Attacks . | . . . Total Damage . | . . . Kills . | . . . Allies Corrupted . | . . . Allies Melted . | . . . Intel | -11 -10 -10 ------- Run | Yrd Mat Min Active Infowar (turns) 915 | 33 724 158 Seismic 915 | 33 724 158 Robot Analysis Total . | . . . Derelict Logs Recovered . | . . . Drone Launches . | . . . Drone Recoveries . | . . . Exploration | -11 -10 -10 ------------- Run | Yrd Mat Min Turns Passed 998 | 116 724 158 Spaces Moved 386 | 55 254 77 Core 3 | 3 . . Treads 383 | 52 254 77 Legs . | . . . Wheels . | . . . Hover . | . . . Flight . | . . . Fastest Speed 50 | 50 160 160 Average Speed 159 | 154 160 160 Slowest Speed 160 | 160 160 160 Overloaded Moves . | . . . Propulsion Burnouts . | . . . Robots Hopped . | . . . Potential Cave-ins . | . . . Cave-ins Triggered . | . . . Exploration Rate (%) 20 | 4 32 25 Regions Visited 2 Branch Regions 1 Pre-discovered Areas . | . . . Known Exits Taken . | . . . Unknown Exits Taken 2 | 1 1 . Scrap Searched . | . . . Spaces Dug . | . . . Terrain Destroyed 95 | . . 95 Melee . | . . . Projectile . | . . . AOE 95 | . . 95 Terrain Rammed . | . . . Walls Destroyed . | . . . Machines Disabled . | . . . Actions | -11 -10 -10 --------- Run | Yrd Mat Min Total 696 | 74 531 91 Wait 246 | 4 241 1 Move 384 | 54 253 77 Hop . | . . . Pick Up 11 | 4 7 . Fast Attach 6 | 6 . . Attach 1 | 1 . . Detach . | . . . Swap 6 | . 3 3 Drop 3 | . 3 . Fire 39 | 5 24 10 Melee . | . . . Ram . | . . . Kick . | . . . Crush . | . . . Escape Stasis . | . . . Rewire . | . . . Trap . | . . . Miscellaneous . | . . . Route ------- -11/Scrapyard -10/Materials -10/Mines History --------- Turn | Location | Event 8 | -11/Scrapyard | Discovered new exit (range 15) 117 | -11/Scrapyard | Entered Materials 303 | -10/Materials | Build established: Mutant 515 | -10/Materials | Discovered new exit (range 4) 841 | -10/Materials | Entered Mines 937 | -10/Mines | Assembled infested the area 993 | -10/Mines | Core integrity fell below 50% 998 | -10/Mines | Core integrity fell below 20% 999 | -10/Mines | Destroyed 17 combat bots 999 | -10/Mines | Destroyed by D-53 Grenadier with Mini Grenade Launcher Last Messages --------------- 00972_ Destroyed Asb. F-torch. 00972_ as-21703 destroyed. 00975_ as-81986 destroyed. 00975_ as-00921 destroyed. 00975_ as-79540 destroyed. [Achievement: Exterminator] 00975_ Destroyed Asb. F-torch. 00975_ as-15818 destroyed. 00978_ as-33965 destroyed. 00979_ U-05 Engineer builds a Wall. 00985_ U-05 Engineer lays Concrete. 00986_ U-05 Engineer builds a Wall. 00988_ U-05 Engineer destroyed. 00990_ The unstable cave ceiling collapses. 00990_ Lgt. Treads destroyed. 00992_ U-05 Engineer destroyed. 00993_ The unstable cave ceiling collapses. 00996_ Lgt. Treads destroyed. 00996_ Ion Engine destroyed. 00997_ The unstable cave ceiling collapses. Map ----- +----------------------------------------------------+ | | | | | | | | | | | | | ?????????????????????????????????????????????????? | | ?????????????????????????????????????????????????? | | ?????????????????????????????????????????????????? | | ?????????????????????????????????????????????????? | | ?????????????????????????????????????????????????? | | ?????????????????????????????????????????????????? | | ?????????????????????????????????????????????????? | | ?????????????????????????????????????????????????? | | ?????????????????????????????????????????????????? | | ?????????????????#########???????????????????????? | | ?????????????????? = ###????????????????????? | | ??????????????????? #????????????????????? | | ???????????????????# ##???????????????????? | | ???????????????????# ! #???????????????????? | | ???????????????????# #???????????????????? | | ???????????????????# ! ####????????????????? | | ???????????????????# ####### ?????????? | | ????????????????????# ????????? | | ????????????????????# < ?????????? | | ????????????????????# @ #????????????????? | | ????????????????????## ##????????????????? | | ????????????????????# #????????????????? | | ????????????????????## ??????????????? | | ?????????????????????# ???????????? | | ?????????????????????### d # ??????????? | | ???????????????????????## d #?? ??????????? | | ???????????????????????# #??????????????? | | ???????????????????????# # #??????????????? | | ??????????????????????? ## #??????????????? | | ???????????????????????#??# #??????????????? | | ??????????????????????????# #??????????????? | | ??????????????????????????# #??????????????? | | ??????????????????????????## ##??????????????? | | ???????????????????????????## ####???????????????? | | ????????????????????????????# #??????????????????? | | ?????????????????#########??# #??????????????????? | | ????????????????## ##?# #??????????????????? | | ???????????????## #?# #??????????????????? | | ??????????###### ### #??????????????????? | | ?????????## #??????????????????? | | ????????## #??????????????????? | | ??####### ####### #??????????????????? | | ??# ##?????# #??????????????????? | | ??# ##### ## ##??????# ??????????????????? | +----------------------------------------------------+ Best States ------------- Heat Dissipation 25 Energy Generation 10 Energy Capacity 250 Matter Stores 300 Matter Capacity 300 Sight Range 16 Terrain Scan Density 10 Evasion (%) 40 Recoil Reduction 2 Item Schematics ----------------- None Robot Schematics ------------------ None Fabricated ------------ Nothing Repaired ---------- Nothing Alien Tech Used ----------------- None Achievements -------------- Exterminator Challenges ------------ None Game ------ Seed DataDynamicWings Manual? 0 Play Time 00:06:44 Cumulative 71.7 hours Start 2025.09.17 @ 23:00:21 End 2025.09.17 @ 23:05:42 Sessions 1 Manual Loads 0 Difficulty Rogue Special Mode None Game No. 153 Rogue 151 Adventurer 0 Explorer 2 Win Type - Total 0 Types 0/0/0/0/0/0/0/0/0/0 Lore% 27 Gallery% 44 Achievement% 40 Wizard Run 0 Options --------- Layout 2 ASCII 0 Keyboard 1 Movement Arrows Keybinds 0 Fullscreen 1 Font 28/SmallcapsGlow Map View 50x49 Zoom Use 0% Tactical HUD 1 Map Filters NONE Filters NONE Steam 1 RUN: 971dff08-5bbc-4be7-bd6d-7b39124cba8e